fUSD/lending_fUSD_20250809
["ID","MTS","AMOUNT","RATE_DAILY","PERIOD"]
[378130195,1754740273503,-472.46443948,0.00025479,2]
[378130196,1754740273513,-400.0,0.00025479,2]
[378130197,1754740273522,-400.0,0.00025479,2]
[378130198,1754740273531,-400.0,0.00025479,2]
[378130199,1754740273540,-400.0,0.00025479,2]
[378130200,1754740273550,-400.0,0.00025479,2]
[378130201,1754740273559,-400.0,0.00025479,2]
[378130202,1754740273568,-400.0,0.00025479,2]
[378130203,1754740273577,-493.21930893,0.00025479,2]
[378130204,1754740273587,-400.0,0.00025479,2]
[378130205,1754740273596,-415.49,0.00025479,2]
[378130206,1754740273605,-400.0,0.00025479,2]
[378130207,1754740273615,-500.23,0.00025479,2]
[378130208,1754740273624,-439.13,0.00025479,2]
[378130209,1754740273635,-400.0,0.00025479,2]
[378130210,1754740273645,-400.0,0.00025479,2]
[378130211,1754740273654,-400.0,0.00025479,2]
[378130212,1754740273663,-400.0,0.00025479,2]
[378130213,1754740273673,-442.3,0.00025479,2]
[378130214,1754740273682,-425.11,0.00025479,2]
[378130215,1754740273691,-1000.0,0.00025479,2]
[378130216,1754740273701,-400.0,0.00025479,2]
[378130217,1754740273711,-400.0,0.00025479,2]
[378130218,1754740273720,-276.26242921,0.00025479,2]
[378130219,1754740273729,-400.0,0.00025479,2]
[378130220,1754740273739,-400.0,0.00025479,2]
[378130221,1754740273748,-400.0,0.00025479,2]
[378130222,1754740273757,-400.0,0.00025479,2]
[378130223,1754740273767,-400.0,0.00025479,2]
[378130224,1754740273776,-400.0,0.00025479,2]
[378130225,1754740273786,-400.0,0.00025479,2]
[378130226,1754740273796,-514.82,0.00025479,2]
[378130227,1754740273805,-400.0,0.00025479,2]
[378130228,1754740273814,-584.43,0.00025479,2]
[378130229,1754740273823,-400.0,0.00025479,2]
[378130230,1754740273833,-465.93,0.00025479,2]
[378130231,1754740273842,-400.0,0.00025479,2]
[378130232,1754740273852,-400.0,0.00025479,2]
[378130233,1754740273861,-411.24,0.00025479,2]
[378130234,1754740273870,-456.32,0.00025479,2]
[378130235,1754740273879,-400.0,0.00025479,2]
[378130236,1754740273888,-400.0,0.00025479,2]
[378130237,1754740273898,-400.0,0.00025479,2]
[378130238,1754740273907,-650.41,0.00025479,2]
[378130239,1754740273921,-400.0,0.00025479,2]
[378130240,1754740273931,-505.31,0.00025479,2]
[378130241,1754740273940,-400.0,0.00025479,2]
[378130242,1754740273950,-421.71,0.00025479,2]
[378130243,1754740273960,-400.0,0.00025479,2]
[378130244,1754740273969,-400.0,0.00025479,2]
[378130245,1754740273978,-400.0,0.00025479,2]
[378130246,1754740273988,-400.0,0.00025479,2]
[378130247,1754740274008,-400.0,0.00025479,2]
[378130248,1754740274018,-452.76,0.00025479,2]
[378130249,1754740274027,-433.75,0.00025479,2]
[378130250,1754740274037,-400.0,0.00025479,2]
[378130251,1754740274046,-400.0,0.00025479,2]
[378130252,1754740274056,-414.8,0.00025479,2]
[378130253,1754740274066,-400.0,0.00025479,2]
[378130254,1754740274075,-591.93,0.00025479,2]
[378130255,1754740274085,-400.0,0.00025479,2]
[378130256,1754740274094,-413.28,0.00025479,2]
[378130257,1754740274304,-400.0,0.00025479,2]
[378130258,1754740274314,-400.0,0.00025479,2]
[378130259,1754740274326,-400.0,0.00025479,2]
[378130260,1754740274335,-176.88316976,0.00025479,2]
[378130261,1754740274345,-400.0,0.00025479,2]
[378130262,1754740274354,-620.14,0.00025479,2]
[378130263,1754740274364,-475.42,0.00025479,2]
[378130264,1754740274373,-400.0,0.00025479,2]
[378130265,1754740274383,-400.0,0.00025479,2]
[378130266,1754740274394,-400.0,0.00025479,2]
[378130267,1754740274403,-400.0,0.00025479,2]
[378130268,1754740274412,-400.0,0.00025479,2]
[378130269,1754740274422,-723.96,0.00025479,2]
[378130270,1754740274432,-182.51273976,0.00025479,2]
[378130271,1754740274441,-400.0,0.00025479,2]
[378130272,1754740274451,-770.94,0.00025479,2]
[378130273,1754740274461,-527.1,0.00025479,2]
[378130274,1754740274470,-400.0,0.00025479,2]
[378130275,1754740274480,-400.0,0.00025479,2]
[378130276,1754740274489,-431.36,0.00025479,2]
[378130277,1754740274498,-400.0,0.00025479,2]
[378130278,1754740274507,-400.0,0.00025479,2]
[378130279,1754740274517,-400.0,0.00025479,2]
[378130280,1754740274526,-341.27313495,0.00025479,2]
[378130281,1754740274536,-400.0,0.00025479,2]
[378130282,1754740274546,-400.0,0.00025479,2]
[378130283,1754740274555,-497.78,0.00025479,2]
[378130284,1754740274564,-400.0,0.00025479,2]
[378130285,1754740274574,-756.29,0.00025479,2]
[378130286,1754740274584,-434.89,0.00025479,2]
[378130287,1754740274593,-400.0,0.00025479,2]
[378130288,1754740274603,-400.0,0.00025479,2]
[378130289,1754740274613,-501.7,0.00025479,2]
[378130290,1754740274623,-400.0,0.00025479,2]
[378130291,1754740274642,-400.0,0.00025479,2]
[378130292,1754740274654,-400.0,0.00025479,2]
[378130293,1754740274664,-400.0,0.00025479,2]
[378130294,1754740274674,-400.0,0.00025479,2]
[378130295,1754740274684,-400.0,0.00025479,2]
[378130296,1754740274693,-400.0,0.00025479,2]
[378130297,1754740274702,-408.86,0.00025479,2]
[378130298,1754740274713,-400.0,0.00025479,2]
[378130299,1754740274722,-400.0,0.00025479,2]
[378130300,1754740274732,-400.0,0.00025479,2]
[378130301,1754740274741,-400.0,0.00025479,2]
[378130302,1754740274751,-400.0,0.00025479,2]
[378130303,1754740274760,-400.0,0.00025479,2]
[378130304,1754740274768,-400.0,0.00025479,2]
[378130305,1754740274778,-400.0,0.00025479,2]
[378130306,1754740274787,-401.18,0.00025479,2]
[378130307,1754740274797,-400.0,0.00025479,2]
[378130308,1754740274806,-532.77,0.00025479,2]
[378130309,1754740274816,-400.0,0.00025479,2]
[378130310,1754740274825,-400.0,0.00025479,2]
[378130311,1754740274835,-400.0,0.00025479,2]
[378130312,1754740274844,-400.0,0.00025479,2]
[378130313,1754740274853,-400.0,0.00025479,2]
[378130314,1754740274863,-400.0,0.00025479,2]
[378130315,1754740274873,-400.0,0.00025479,2]
[378130316,1754740274883,-400.0,0.00025479,2]
[378130317,1754740274892,-400.0,0.00025479,2]
[378130318,1754740274902,-400.0,0.00025479,2]
[378130319,1754740274912,-400.0,0.00025479,2]
[378130320,1754740274922,-400.0,0.00025479,2]
[378130321,1754740274933,-400.0,0.00025479,2]
[378130322,1754740274943,-400.0,0.00025479,2]
[378130323,1754740274953,-400.0,0.00025479,2]
[378130324,1754740274965,-442.03,0.00025479,2]
[378130325,1754740274975,-400.0,0.00025479,2]
[378130326,1754740274984,-479.47,0.00025479,2]
[378130327,1754740274994,-400.0,0.00025479,2]
[378130328,1754740275004,-553.25,0.00025479,2]
[378130329,1754740275013,-400.0,0.00025479,2]
[378130330,1754740275022,-697.16,0.00025479,2]
[378130331,1754740275031,-487.7289285,0.00025479,2]
[378130332,1754740275042,-400.0,0.00025479,2]
[378130333,1754740275054,-355.34403892,0.00025479,2]
[378130334,1754740275069,-459.79,0.00025479,2]
[378130335,1754740275078,-400.0,0.00025479,2]
[378130336,1754740275087,-760.75,0.00025479,2]
[378130337,1754740275097,-400.0,0.00025479,2]
[378130338,1754740275106,-400.0,0.00025479,2]
[378130339,1754740275115,-400.0,0.00025479,2]
[378130340,1754740275124,-400.0,0.00025479,2]
[378130341,1754740275134,-400.0,0.00025479,2]
[378130342,1754740275143,-1052.33,0.00025479,2]
[378130343,1754740275152,-400.0,0.00025479,2]
[378130344,1754740275162,-400.0,0.00025479,2]
[378130345,1754740275171,-405.07,0.00025479,2]
[378130346,1754740275187,-707.81,0.00025479,2]
[378130347,1754740275197,-400.0,0.00025479,2]
[378130348,1754740275206,-400.0,0.00025479,2]
[378130349,1754740275215,-350.35,0.00025479,2]
[378130350,1754740275225,-400.0,0.00025479,2]
[378130351,1754740275235,-432.21,0.00025479,2]
[378130352,1754740275244,-533.33,0.00025479,2]
[378130353,1754740275254,-612.81,0.00025479,2]
[378130354,1754740275263,-573.13,0.00025479,2]
[378130355,1754740275273,-674.19,0.00025479,2]
[378130356,1754740275287,-400.0,0.00025479,2]
[378130357,1754740275296,-1186.37,0.00025479,2]
[378130358,1754740275305,-400.0,0.00025479,2]
[378130359,1754740275315,-538.9,0.00025479,2]
[378130360,1754740275325,-400.0,0.00025479,2]
[378130361,1754740275334,-400.0,0.00025479,2]
[378130362,1754740275344,-621.72,0.00025479,2]
[378130363,1754740275353,-400.0,0.00025479,2]
[378130364,1754740275363,-730.75,0.00025479,2]
[378130365,1754740275373,-487.25,0.00025479,2]
[378130366,1754740275382,-400.0,0.00025479,2]
[378130367,1754740275391,-475.57,0.00025479,2]
[378130368,1754740275401,-400.0,0.00025479,2]
[378130369,1754740275410,-400.0,0.00025479,2]
[378130370,1754740275419,-694.98,0.00025479,2]
[378130371,1754740275430,-400.0,0.00025479,2]
[378130372,1754740275440,-400.0,0.00025479,2]
[378130373,1754740275454,-517.55,0.00025479,2]
[378130374,1754740275463,-400.0,0.00025479,2]
[378130375,1754740275472,-400.0,0.00025479,2]
[378130376,1754740275481,-400.0,0.00025479,2]
[378130377,1754740275490,-577.78,0.00025479,2]
[378130378,1754740275499,-400.0,0.00025479,2]
[378130379,1754740275508,-400.0,0.00025479,2]
[378130380,1754740275518,-490.68,0.00025479,2]
[378130381,1754740275529,-400.0,0.00025479,2]
[378130382,1754740275538,-400.0,0.00025479,2]
[378130383,1754740275547,-653.84,0.00025479,2]
[378130384,1754740275556,-578.01,0.00025479,2]
[378130385,1754740275566,-400.0,0.00025479,2]
[378130386,1754740275575,-415.8,0.00025479,2]
[378130387,1754740275584,-400.0,0.00025479,2]
[378130388,1754740275593,-300.0,0.00025479,2]
[378130389,1754740275603,-400.0,0.00025479,2]
[378130390,1754740275612,-400.0,0.00025479,2]
[378130391,1754740275622,-509.85,0.00025479,2]
[378130392,1754740275631,-400.0,0.00025479,2]
[378130393,1754740275641,-552.06,0.00025479,2]
[378130394,1754740275651,-400.0,0.00025479,2]
[378130395,1754740275660,-549.19,0.00025479,2]
[378130396,1754740275669,-400.0,0.00025479,2]
[378130397,1754740275680,-551.59,0.00025479,2]
[378130398,1754740275689,-400.0,0.00025479,2]
[378130399,1754740275698,-400.0,0.00025479,2]
[378130400,1754740275707,-400.0,0.00025479,2]
[378130401,1754740275717,-400.0,0.00025479,2]
[378130402,1754740275726,-400.0,0.00025479,2]
[378130403,1754740275736,-400.0,0.00025479,2]
[378130404,1754740275746,-400.0,0.00025479,2]
[378130405,1754740275756,-625.42,0.00025479,2]
[378130406,1754740275765,-438.58,0.00025479,2]
[378130407,1754740275775,-504.2,0.00025479,2]
[378130408,1754740275784,-400.0,0.00025479,2]
[378130409,1754740275794,-407.2,0.00025479,2]
[378130410,1754740275804,-400.0,0.00025479,2]
[378130411,1754740275820,-400.0,0.00025479,2]
[378130412,1754740275830,-821.78,0.00025479,2]
[378130413,1754740275839,-400.0,0.00025479,2]
[378130414,1754740275849,-400.0,0.00025479,2]
[378130415,1754740275858,-400.0,0.00025479,2]
[378130416,1754740275868,-400.0,0.00025479,2]
[378130417,1754740275878,-400.0,0.00025479,2]
[378130418,1754740275888,-400.0,0.00025479,2]
[378130419,1754740275897,-400.0,0.00025479,2]
[378130420,1754740275907,-400.0,0.00025479,2]
[378130421,1754740275918,-400.0,0.00025479,2]
[378130422,1754740275929,-400.0,0.00025479,2]
[378130423,1754740275938,-400.0,0.00025479,2]
[378130424,1754740275948,-400.0,0.00025479,2]
[378130425,1754740275958,-400.0,0.00025479,2]
[378130426,1754740275968,-400.0,0.00025479,2]
[378130427,1754740275982,-400.0,0.00025479,2]
[378130428,1754740275991,-400.0,0.00025479,2]
[378130429,1754740276001,-864.13,0.00025479,2]
[378130430,1754740276011,-400.0,0.00025479,2]
[378130431,1754740276020,-400.0,0.00025479,2]
[378130432,1754740276030,-400.0,0.00025479,2]
[378130433,1754740276039,-557.77,0.00025479,2]
[378130434,1754740276049,-691.19,0.00025479,2]
[378130435,1754740276058,-508.54711981,0.00025479,2]
[378130436,1754740276068,-400.0,0.00025479,2]
[378130437,1754740276077,-400.0,0.00025479,2]
[378130438,1754740276086,-400.0,0.00025479,2]
[378130439,1754740276095,-400.0,0.00025479,2]
[378130440,1754740276106,-400.0,0.00025479,2]
[378130441,1754740276115,-400.0,0.00025479,2]
[378130442,1754740276125,-400.0,0.00025479,2]
[378130443,1754740276135,-400.0,0.00025479,2]
[378130444,1754740276144,-400.0,0.00025479,2]
[378130445,1754740276154,-400.0,0.00025479,2]
[378130446,1754740276164,-400.0,0.00025479,2]
[378130447,1754740276174,-481.99,0.00025479,2]
[378130448,1754740276184,-605.47,0.00025479,2]
[378130449,1754740276194,-463.21,0.00025479,2]
[378130450,1754740276204,-704.09,0.00025479,2]
[378130451,1754740276213,-499.21,0.00025479,2]
[378130452,1754740276222,-292.42479035,0.00025479,2]
[378130453,1754740276232,-400.0,0.00025479,2]
[378130454,1754740276242,-865.43,0.00025479,2]
[378130455,1754740276251,-400.0,0.00025479,2]
[378130456,1754740276261,-786.1,0.00025479,2]
[378130457,1754740276270,-188.09767551,0.00025479,2]
[378130458,1754740276280,-400.0,0.00025479,2]
[378130459,1754740276292,-627.79,0.00025479,2]
[378130460,1754740276302,-400.0,0.00025479,2]
[378130461,1754740276312,-400.0,0.00025479,2]
[378130462,1754740276322,-456.06,0.00025479,2]
[378130463,1754740276333,-736.64,0.00025479,2]
[378130464,1754740276342,-400.0,0.00025479,2]
[378130465,1754740276352,-879.71,0.00025479,2]
[378130466,1754740276362,-1008.23,0.00025479,2]
[378130467,1754740276371,-400.0,0.00025479,2]
[378130468,1754740276381,-400.0,0.00025479,2]
[378130469,1754740276390,-400.0,0.00025479,2]
[378130470,1754740276399,-400.0,0.00025479,2]
[378130471,1754740276409,-297.43828854,0.00025479,2]
[378130472,1754740276418,-400.0,0.00025479,2]
[378130473,1754740276428,-400.0,0.00025479,2]
[378130474,1754740276438,-400.0,0.00025479,2]
[378130475,1754740276447,-500.25,0.00025479,2]
[378130476,1754740276456,-400.0,0.00025479,2]
[378130477,1754740276466,-400.0,0.00025479,2]
[378130478,1754740276476,-514.53,0.00025479,2]
[378130479,1754740276485,-504.6,0.00025479,2]
[378130480,1754740276495,-545.11,0.00025479,2]
[378130481,1754740276503,-400.0,0.00025479,2]
[378130482,1754740276513,-400.0,0.00025479,2]
[378130483,1754740276522,-400.0,0.00025479,2]
[378130484,1754740276531,-400.0,0.00025479,2]
[378130485,1754740276541,-400.0,0.00025479,2]
[378130486,1754740276550,-764.43,0.00025479,2]
[378130487,1754740276559,-400.0,0.00025479,2]
[378130488,1754740276568,-400.0,0.00025479,2]
[378130489,1754740276577,-400.0,0.00025479,2]
[378130490,1754740276586,-400.0,0.00025479,2]
[378130491,1754740276595,-668.07,0.00025479,2]
[378130492,1754740276604,-1268.38,0.00025479,2]
[378130493,1754740276614,-5843.77,0.00025479,2]
[378130494,1754740276623,-400.0,0.00025479,2]
[378130495,1754740276632,-400.0,0.00025479,2]
[378130496,1754740276642,-400.0,0.00025479,2]
[378130497,1754740276652,-400.0,0.00025479,2]
[378130498,1754740276661,-400.0,0.00025479,2]
[378130499,1754740276671,-456.68,0.00025479,2]
[378130500,1754740276681,-982.34,0.00025479,2]
[378130501,1754740276691,-930.15,0.00025479,2]
[378130502,1754740276700,-400.0,0.00025479,2]
[378130503,1754740276709,-601.42,0.00025479,2]
[378130504,1754740276719,-410.35,0.00025479,2]
[378130505,1754740276728,-400.0,0.00025479,2]
[378130506,1754740276737,-340.97454111,0.00025479,2]
[378130507,1754740276746,-634.29,0.00025479,2]
[378130508,1754740276755,-600.09,0.00025479,2]
[378130509,1754740276764,-400.0,0.00025479,2]
[378130510,1754740276773,-400.0,0.00025479,2]
[378130511,1754740276782,-400.0,0.00025479,2]
[378130512,1754740276792,-400.0,0.00025479,2]
[378130513,1754740276801,-579.28,0.00025479,2]
[378130514,1754740276810,-745.02,0.00025479,2]
[378130515,1754740276819,-790.43,0.00025479,2]
[378130516,1754740276829,-602.39,0.00025479,2]
[378130517,1754740276838,-618.18,0.00025479,2]
[378130518,1754740276847,-400.0,0.00025479,2]
[378130519,1754740276856,-748.38,0.00025479,2]
[378130520,1754740276866,-400.0,0.00025479,2]
[378130521,1754740276875,-791.98,0.00025479,2]
[378130522,1754740276884,-400.0,0.00025479,2]
[378130523,1754740276894,-707.61,0.00025479,2]
[378130524,1754740276905,-400.0,0.00025479,2]
[378130525,1754740276915,-400.0,0.00025479,2]
[378130526,1754740276924,-400.0,0.00025479,2]
[378130527,1754740276934,-674.89,0.00025479,2]
[378130528,1754740276944,-400.0,0.00025479,2]
[378130529,1754740276953,-400.0,0.00025479,2]
[378130530,1754740276963,-672.15,0.00025479,2]
[378130531,1754740276974,-550.78,0.00025479,2]
[378130532,1754740276984,-400.0,0.00025479,2]
[378130533,1754740276993,-400.0,0.00025479,2]
[378130534,1754740277003,-537.27,0.00025479,2]
[378130535,1754740277014,-419.93,0.00025479,2]
[378130536,1754740277024,-566.47,0.00025479,2]
[378130537,1754740277033,-400.0,0.00025479,2]
[378130538,1754740277044,-478.16,0.00025479,2]
[378130539,1754740277054,-264.78,0.00025479,2]
[378130540,1754740277064,-2681.42,0.00025479,2]
[378130541,1754740277074,-400.0,0.00025479,2]
[378130542,1754740277084,-761.35,0.00025479,2]
[378130543,1754740277093,-400.0,0.00025479,2]
[378130544,1754740277103,-400.0,0.00025479,2]
[378130545,1754740277112,-400.0,0.00025479,2]
[378130546,1754740277122,-400.0,0.00025479,2]
[378130547,1754740277132,-628.39,0.00025479,2]
[378130548,1754740277141,-400.0,0.00025479,2]
[378130549,1754740277151,-2630.77,0.00025479,2]
[378130550,1754740277161,-347.29598769,0.00025479,2]
[378130551,1754740277171,-303.02856325,0.00025479,2]
[378130552,1754740277182,-412.86,0.00025479,2]
[378130553,1754740277192,-496.22,0.00025479,2]
[378130554,1754740277201,-473.3,0.00025479,2]
[378130555,1754740277211,-400.0,0.00025479,2]
[378130556,1754740277221,-400.0,0.00025479,2]
[378130557,1754740277233,-483.24,0.00025479,2]
[378130558,1754740277243,-2958.86,0.00025479,2]
[378130559,1754740277252,-400.0,0.00025479,2]
[378130560,1754740277262,-400.0,0.00025479,2]
[378130561,1754740277271,-400.0,0.00025479,2]
[378130562,1754740277282,-1584.12,0.00025479,2]
[378130563,1754740277294,-503.42,0.00025479,2]
[378130564,1754740277303,-1129.34,0.00025479,2]
[378130565,1754740277312,-522.73,0.00025479,2]
[378130566,1754740277321,-750.16,0.00025479,2]
[378130567,1754740277330,-475.88637525,0.00025479,2]
[378130568,1754740277340,-400.0,0.00025479,2]
[378130569,1754740277349,-860.64,0.00025479,2]
[378130570,1754740277359,-400.0,0.00025479,2]
[378130571,1754740277369,-645.99,0.00025479,2]
[378130572,1754740277379,-400.0,0.00025479,2]
[378130573,1754740277387,-400.0,0.00025479,2]
[378130574,1754740277397,-661.26,0.00025479,2]
[378130575,1754740277406,-400.0,0.00025479,2]
[378130576,1754740277416,-400.0,0.00025479,2]
[378130577,1754740277427,-693.02,0.00025479,2]
[378130578,1754740277438,-413.22,0.00025479,2]
[378130579,1754740277448,-976.31,0.00025479,2]
[378130580,1754740277458,-483.75,0.00025479,2]
[378130581,1754740277467,-400.0,0.00025479,2]
[378130582,1754740277477,-400.0,0.00025479,2]
[378130583,1754740277487,-886.67,0.00025479,2]
[378130584,1754740277496,-775.8,0.00025479,2]
[378130585,1754740277506,-713.67,0.00025479,2]
[378130586,1754740277704,-400.0,0.00025479,2]
[378130587,1754740277715,-400.0,0.00025479,2]
[378130588,1754740277725,-723.56,0.00025479,2]
[378130589,1754740277735,-731.98,0.00025479,2]
[378130590,1754740277746,-918.3,0.00025479,2]
[378130591,1754740277756,-817.97,0.00025479,2]
[378130592,1754740277767,-400.0,0.00025479,2]
[378130593,1754740277776,-400.0,0.00025479,2]
[378130594,1754740277786,-400.0,0.00025479,2]
[378130595,1754740277796,-400.0,0.00025479,2]
[378130596,1754740277804,-400.0,0.00025479,2]
[378130597,1754740277814,-400.0,0.00025479,2]
[378130598,1754740277824,-400.0,0.00025479,2]
[378130599,1754740277833,-475.37,0.00025479,2]
[378130600,1754740277842,-466.81,0.00025479,2]
[378130601,1754740277852,-400.0,0.00025479,2]
[378130602,1754740277861,-400.0,0.00025479,2]
[378130603,1754740277871,-755.62,0.00025479,2]
[378130604,1754740277882,-620.12,0.00025479,2]
[378130605,1754740277891,-916.88,0.00025479,2]
[378130606,1754740277900,-631.14,0.00025479,2]
[378130607,1754740277910,-400.0,0.00025479,2]
[378130608,1754740277919,-598.09,0.00025479,2]
[378130609,1754740277931,-400.0,0.00025479,2]
[378130610,1754740277940,-682.61,0.00025479,2]
[378130611,1754740277949,-1066.29,0.00025479,2]
[378130612,1754740277959,-829.05,0.00025479,2]
[378130613,1754740277969,-427.18,0.00025479,2]
[378130614,1754740277979,-518.73,0.00025479,2]
[378130615,1754740277989,-400.0,0.00025479,2]
[378130616,1754740277998,-635.68,0.00025479,2]
[378130617,1754740278008,-400.0,0.00025479,2]
[378130618,1754740278017,-400.0,0.00025479,2]
[378130619,1754740278027,-549.69,0.00025479,2]
[378130620,1754740278037,-679.94,0.00025479,2]
[378130621,1754740278047,-564.93,0.00025479,2]
[378130622,1754740278057,-400.0,0.00025479,2]
[378130623,1754740278066,-1507.77,0.00025479,2]
[378130624,1754740278076,-400.0,0.00025479,2]
[378130625,1754740278085,-1312.48,0.00025479,2]
[378130626,1754740278095,-400.0,0.00025479,2]
[378130627,1754740278105,-582.81,0.00025479,2]
[378130628,1754740278115,-424.17189546,0.00025479,2]
[378130629,1754740278125,-476.07,0.00025479,2]
[378130630,1754740278135,-383.11539045,0.00025479,2]
[378130631,1754740278146,-400.0,0.00025479,2]
[378130632,1754740278156,-400.0,0.00025479,2]
[378130633,1754740278166,-400.0,0.00025479,2]
[378130634,1754740278176,-400.0,0.00025479,2]
[378130635,1754740278190,-400.0,0.00025479,2]
[378130636,1754740278201,-861.24,0.00025479,2]
[378130637,1754740278211,-1223.84,0.00025479,2]
[378130638,1754740278221,-1053.17,0.00025479,2]
[378130639,1754740278231,-400.0,0.00025479,2]
[378130640,1754740278241,-400.0,0.00025479,2]
[378130641,1754740278251,-876.41,0.00025479,2]
[378130642,1754740278261,-400.0,0.00025479,2]
[378130643,1754740278272,-400.0,0.00025479,2]
[378130644,1754740278283,-400.0,0.00025479,2]
[378130645,1754740278294,-650.4,0.00025479,2]
[378130646,1754740278303,-961.84,0.00025479,2]
[378130647,1754740278313,-400.0,0.00025479,2]
[378130648,1754740278324,-400.0,0.00025479,2]
[378130649,1754740278334,-400.0,0.00025479,2]
[378130650,1754740278344,-400.0,0.00025479,2]
[378130651,1754740278353,-1661.19,0.00025479,2]
[378130652,1754740278364,-400.0,0.00025479,2]
[378130653,1754740278374,-753.78,0.00025479,2]
[378130654,1754740278384,-587.88,0.00025479,2]
[378130655,1754740278393,-400.0,0.00025479,2]
[378130656,1754740278404,-738.08,0.00025479,2]
[378130657,1754740278413,-854.59,0.00025479,2]
[378130658,1754740278423,-531.13,0.00025479,2]
[378130659,1754740278434,-869.45,0.00025479,2]
[378130660,1754740278444,-400.0,0.00025479,2]
[378130661,1754740278454,-1000.0,0.00025479,7]
[378130662,1754740278464,-400.0,0.00025479,2]
[378130663,1754740278474,-634.18,0.00025479,2]
[378130664,1754740278483,-400.0,0.00025479,2]
[378130665,1754740278493,-444.48,0.00025479,2]
[378130666,1754740278502,-400.0,0.00025479,2]
[378130667,1754740278512,-400.0,0.00025479,2]
[378130668,1754740278521,-400.0,0.00025479,2]
[378130669,1754740278531,-433.37,0.00025479,2]
[378130670,1754740278541,-1092.69,0.00025479,2]
[378130671,1754740278551,-1156.97,0.00025479,2]
[378130672,1754740278560,-621.02,0.00025479,2]
[378130673,1754740278571,-770.79,0.00025479,2]
[378130674,1754740278580,-514.42,0.00025479,2]
[378130675,1754740278590,-436.50154379,0.00025479,2]
[378130676,1754740278600,-400.0,0.00025479,2]
[378130677,1754740278609,-753.35,0.00025479,2]
[378130678,1754740278619,-400.0,0.00025479,2]
[378130679,1754740278629,-491.19,0.00025479,2]
[378130680,1754740278638,-400.0,0.00025479,2]
[378130681,1754740278648,-400.0,0.00025479,2]
[378130682,1754740278657,-387.56886344,0.00025479,2]
[378130683,1754740278667,-998.27,0.00025479,2]
[378130684,1754740278677,-400.0,0.00025479,2]
[378130685,1754740278687,-400.0,0.00025479,2]
[378130686,1754740278697,-524.62,0.00025479,2]
[378130687,1754740278707,-400.0,0.00025479,2]
[378130688,1754740278716,-1045.41,0.00025479,2]
[378130689,1754740278725,-697.79,0.00025479,2]
[378130690,1754740278735,-1056.82,0.00025479,2]
[378130691,1754740278744,-400.0,0.00025479,2]
[378130692,1754740278754,-400.0,0.00025479,2]
[378130693,1754740278763,-519.41,0.00025479,2]
[378130694,1754740278773,-400.0,0.00025479,2]